bitfinex/quotes_ETHUSD_20260216
["timestamp","ask_amount","ask_price","bid_price","bid_amount"]
[1771273208231,1.76319567,1974.5,1973.9,1.26652819]
[1771273210129,1.76319567,1974.5,1973.8,0.001]
[1771273210130,0.49704678,1974.4,1973.8,0.001]
[1771273210453,0.49704678,1974.6,1973.9,0.49503812]
[1771273210946,1.76313935,1974.6,1973.9,0.49503812]
[1771273211524,1.76313935,1974.6,1974.0,1.26646403]
[1771273212248,0.49704678,1974.6,1974.0,1.76150215]
[1771273212453,1.76312774,1974.6,1974.0,1.76150215]
[1771273213352,1.76312774,1974.6,1974.0,1.26646403]
[1771273213554,1.76312774,1974.6,1973.9,0.49503812]
[1771273213756,1.73432774,1974.6,1973.9,0.49503812]
[1771273213958,0.46824678,1974.6,1973.9,0.49503812]
[1771273214153,1.7343337,1974.6,1973.9,0.49503812]
[1771273216857,1.7343337,1974.6,1974.0,1.26646403]
[1771273217260,0.46824678,1974.6,1974.0,1.26646403]
[1771273217459,5.06329376,1975.0,1974.1,0.4937972]
[1771273217460,0.45688644,1975.0,1974.1,0.4937972]
[1771273217660,0.45688644,1975.2,1974.1,0.4937972]
[1771273219463,2.65347627,1975.4,1974.3,0.4937972]
[1771273219862,0.45688644,1975.3,1974.3,0.4937972]
[1771273221147,0.0011,1974.9,1974.3,0.4937972]
[1771273221647,0.45688644,1974.8,1974.0,1.76026123]
[1771273223052,0.45688644,1974.8,1974.0,1.26646403]
[1771273223873,1.72290153,1974.7,1974.0,1.26646403]
[1771273226157,0.45688644,1974.6,1974.0,1.26646403]
[1771273228263,0.45688644,1974.6,1974.0,1.76026123]
[1771273230654,1.54388644,1974.8,1974.1,0.4937972]
[1771273230845,0.0011,1974.9,1974.2,0.4937972]
[1771273232375,0.0011,1975.0,1974.2,0.4937972]
[1771273232874,0.0011,1975.0,1974.4,0.4937972]
[1771273233074,0.0011,1975.0,1974.5,0.4937972]
[1771273235279,0.0011,1975.0,1974.7,0.4937972]
[1771273235491,0.0011,1975.2,1974.7,0.4937972]
[1771273235883,0.0011,1975.3,1974.7,0.4937972]
[1771273236085,0.0011,1975.7,1974.7,0.4937972]
[1771273236396,0.45798644,1975.7,1974.7,0.4937972]
[1771273237584,0.45798644,1975.7,1974.9,0.4937972]
[1771273237993,0.0011,1975.7,1974.9,0.4937972]
[1771273238783,0.0011,1975.7,1975.0,0.4937972]
[1771273240003,0.0011,1975.7,1975.1,1.26575869]
[1771273240205,0.0011,1975.7,1975.1,1.75955589]
[1771273241073,0.0011,1975.7,1975.2,0.4937972]
[1771273242700,0.0011,1975.7,1975.4,0.4937972]
[1771273244709,0.0011,1975.7,1975.5,1.2655024]
[1771273244879,0.0011,1975.7,1975.0,1.26582278]
[1771273244880,0.49943927,1975.7,1975.0,1.26582278]
[1771273248307,0.49943927,1975.7,1975.0,1.75069173]
[1771273249222,0.45530469,1975.6,1975.0,1.75069173]
[1771273256020,0.45530469,1975.6,1975.0,1.26582278]
[1771273256021,0.0011,1975.6,1975.0,1.26582278]
[1771273256222,0.0011,1975.6,1975.1,0.48486895]
[1771273258633,0.0011,1975.6,1975.2,1.26569461]
[1771273259242,0.45530469,1975.6,1975.2,1.26569461]
[1771273260648,0.0011,1975.6,1975.2,1.26569461]
[1771273261256,0.45530469,1975.6,1975.2,1.26569461]
[1771273262347,0.0011,1975.8,1975.5,7.87494162]
[1771273263345,0.0011,1975.8,1975.5,9.14039575]
[1771273263648,0.0011,1975.8,1975.5,1.26545413]
[1771273264250,0.0011,1975.6,1975.5,1.26545413]
[1771273264450,0.0011,1975.8,1975.5,1.26545413]
[1771273265552,0.0011,1975.8,1975.4,5.0621491]
[1771273265956,0.0011,1975.8,1975.4,5.54701805]
[1771273267038,0.0011,1975.8,1975.4,5.0621491]
[1771273267238,0.0011,1975.8,1975.5,7.87494162]
[1771273267864,0.0011,1975.8,1975.4,5.54699665]
[1771273268775,0.0011,1975.8,1975.5,7.87494162]
[1771273268978,0.0011,1976.0,1975.6,0.48486895]
[1771273269176,0.0011,1976.0,1975.7,7.39007267]
[1771273269673,0.0011,1976.0,1975.6,0.48486895]
[1771273270182,0.0011,1976.0,1975.6,1.75024394]
[1771273274269,0.0011,1976.0,1975.6,1.26537499]
[1771273275973,0.0011,1976.0,1975.5,0.4848398]
[1771273276976,0.0011,1976.0,1975.5,0.4858398]
[1771273277365,0.912,1976.1,1975.7,7.87491247]
[1771273277881,0.0011,1976.2,1975.7,7.87491247]
[1771273278040,0.0011,1976.2,1975.8,1.26531025]
[1771273278773,0.0011,1976.2,1975.8,1.75015005]
[1771273279857,0.0011,1976.2,1975.6,1.26537719]
[1771273279858,0.49186547,1976.2,1975.6,1.26537719]
[1771273280042,0.49076547,1976.1,1975.6,1.26537719]
[1771273280443,0.49076547,1976.1,1975.5,1.26645741]
[1771273280843,0.49076547,1976.1,1975.5,0.001]
[1771273281049,0.49076547,1975.9,1975.5,0.001]
[1771273281248,0.49076547,1975.9,1975.4,0.001]
[1771273281967,1.26531025,1975.8,1975.4,0.001]
[1771273282176,0.49076547,1975.7,1975.4,0.001]
[1771273286887,1.75618618,1975.7,1975.4,0.001]
[1771273287665,0.49076547,1975.6,1975.4,0.001]
[1771273288871,1.75621652,1975.6,1975.4,0.001]
[1771273289307,1.75621652,1975.6,1975.5,0.001]
[1771273291392,0.49076547,1975.6,1975.5,0.001]
[1771273295911,1.26542603,1975.7,1975.5,0.001]
[1771273296612,1.7561915,1975.7,1975.5,0.001]
[1771273302316,1.7561915,1975.7,1975.6,0.001]
[1771273303032,1.7572915,1975.7,1975.6,0.001]
[1771273308508,1.26652603,1975.7,1975.6,0.001]
[1771273310206,1.26652603,1975.7,1975.4,0.001]
[1771273311414,1.73987711,1975.7,1975.4,0.001]
[1771273316841,1.73987711,1975.7,1975.5,0.001]
[1771273317038,0.0011,1975.6,1975.5,0.001]
[1771273318633,0.0011,1975.9,1975.6,0.45493936]
[1771273319631,0.47445108,1975.9,1975.4,0.001]
[1771273319835,0.47335108,1975.8,1975.2,0.001]
[1771273320021,1.54935108,1975.7,1975.2,0.001]
[1771273320717,1.26543834,1975.6,1975.2,0.001]
[1771273323825,1.73878942,1975.6,1975.2,0.001]
[1771273324027,0.47335108,1975.2,1974.4,0.45493936]
[1771273324232,0.47335108,1975.0,1974.4,0.45493936]
[1771273324536,0.47335108,1975.5,1974.7,0.45493936]
[1771273324849,2.46735108,1975.4,1974.7,0.45493936]
[1771273325040,0.47335108,1975.3,1974.7,0.45493936]
[1771273325965,1.26569461,1975.2,1974.7,0.45493936]
[1771273326630,5.53610555,1975.3,1974.7,1.7209471]
[1771273326631,1.73902309,1975.3,1974.7,1.7209471]
[1771273326832,7.0563507,1975.4,1974.7,1.7209471]
[1771273326833,3.25959606,1975.4,1974.8,0.45493936]
[1771273327232,1.994,1975.4,1974.9,0.45493936]
[1771273327551,1.085,1975.5,1974.9,0.45493936]
[1771273328166,1.085,1975.5,1975.1,0.45493936]
[1771273328659,2.82385747,1975.5,1974.9,1.72077708]
[1771273329234,2.35050639,1975.5,1975.0,0.45493936]
[1771273331346,2.82385747,1975.5,1974.8,1.72186333]
[1771273331665,0.47335108,1975.4,1974.8,1.72186333]
[1771273332552,1.26563053,1975.3,1974.8,1.72186333]
[1771273332752,1.26563053,1975.3,1974.8,0.45593936]
[1771273333469,1.26563053,1975.3,1974.8,1.72188421]
[1771273333651,1.26561518,1975.4,1974.9,0.45493936]
[1771273335876,1.26561518,1975.4,1974.8,1.26694485]
[1771273335877,1.73807015,1975.4,1974.8,0.001]
[1771273336083,1.73807015,1975.4,1974.8,1.72668342]
[1771273340482,1.26561518,1975.4,1974.9,0.45973257]
[1771273341093,1.26561518,1975.4,1974.9,1.72559743]
[1771273341495,1.26561518,1975.4,1974.9,0.45973257]
[1771273341792,1.26561518,1975.4,1974.9,1.72561349]
[1771273341973,2.3505024,1975.5,1974.9,1.72561349]
[1771273342175,0.0011,1975.3,1974.9,1.72561349]
[1771273352008,0.0011,1975.3,1974.8,5.0647544]
[1771273352009,0.0011,1975.3,1975.0,0.45973257]
[1771273354010,0.0011,1975.3,1975.1,1.72549126]
[1771273354906,0.0011,1975.3,1975.1,0.45973257]
[1771273355092,0.0011,1975.3,1975.0,1.26582278]
[1771273355594,0.0011,1975.3,1975.0,1.72555535]
[1771273360715,0.0011,1975.3,1974.8,0.001]
[1771273361119,0.47355497,1975.3,1974.8,0.001]
[1771273362004,0.0011,1975.3,1974.9,0.45973257]
[1771273362207,0.0011,1975.3,1975.2,1.26569461]
[1771273362421,0.0011,1975.3,1975.2,1.72542718]
[1771273362898,0.0011,1975.3,1974.8,1.57173257]
[1771273363098,0.0011,1975.3,1974.8,2.8376401]
[1771273364225,0.47129318,1975.3,1974.8,1.266947]
[1771273365325,0.0011,1975.2,1974.8,1.266947]
[1771273365528,0.0011,1975.2,1974.8,1.73184033]
[1771273369427,0.0011,1975.2,1974.8,0.001]
[1771273369934,0.0011,1975.2,1974.8,0.48908644]
[1771273372437,0.0011,1975.2,1974.8,1.75499565]
[1771273373739,0.0011,1975.2,1974.9,0.48808644]
[1771273374038,0.0011,1975.2,1974.8,0.001]
[1771273374204,0.46416011,1975.2,1974.8,0.001]
[1771273374403,1.26575869,1975.1,1974.8,0.001]
[1771273374603,0.46306011,1975.0,1974.8,0.001]
[1771273379222,1.72889047,1975.0,1974.8,0.001]
[1771273380742,0.46306011,1975.0,1974.8,0.001]
[1771273381446,0.0011,1975.1,1974.8,0.001]
[1771273381653,0.0011,1975.1,1974.8,0.48908644]
[1771273383454,0.0011,1975.1,1974.9,1.26588688]
[1771273384428,0.0011,1975.1,1974.8,1.75498642]
[1771273389481,0.0011,1975.1,1974.8,0.48908644]
[1771273390763,0.0011,1975.1,1974.8,0.001]
[1771273394382,1.54216011,1975.3,1975.0,0.49125809]
[1771273394383,0.0011,1975.3,1975.0,0.49125809]
[1771273394549,0.0011,1975.5,1975.2,0.49125809]
[1771273396366,0.0011,1975.5,1975.1,1.26575869]
[1771273396757,0.0011,1975.5,1975.1,0.49125809]
[1771273399288,0.0011,1975.5,1975.1,1.75696242]
[1771273400270,0.0011,1975.4,1975.1,1.75696242]
[1771273402274,0.0011,1975.7,1975.4,0.49125809]
[1771273404981,0.0011,1976.0,1975.9,7.88578984]
[1771273405182,0.0011,1976.2,1975.9,7.88578984]
[1771273405353,0.0011,1976.2,1975.9,0.49125809]
[1771273407398,0.0011,1976.2,1976.0,1.75644027]
[1771273407695,0.0011,1976.2,1976.0,1.26518218]
[1771273412072,0.0011,1976.2,1976.1,0.49125809]
[1771273412603,0.0011,1976.2,1976.0,1.26518218]
[1771273415101,0.0011,1976.2,1975.9,1.26519816]
[1771273419615,0.0011,1976.4,1976.2,0.49125809]
[1771273419779,0.0011,1976.4,1976.1,7.39453175]
[1771273419780,0.9131,1976.8,1976.4,7.88578984]
[1771273423114,0.9131,1976.8,1976.5,1.26486213]
[1771273424110,1.084,1976.9,1976.5,1.26486213]
[1771273424918,0.912,1977.4,1976.5,1.26486213]
[1771273424919,0.48571266,1977.5,1976.7,1.75728954]
[1771273425087,0.48571266,1977.4,1976.7,1.26473415]
[1771273425916,0.0011,1976.8,1976.7,1.26473415]
[1771273426117,0.48571266,1977.5,1976.9,0.49255539]
[1771273426415,0.0011,1977.0,1976.7,1.75728954]
[1771273426627,0.0011,1977.0,1976.5,0.49255539]
[1771273426923,0.0011,1977.0,1976.5,1.75738047]
[1771273427424,0.0011,1977.0,1976.6,0.49255539]
[1771273427615,2.82594073,1977.5,1976.9,0.49255539]
[1771273427922,2.82594637,1977.5,1976.9,0.49255539]
[1771273428102,0.48571266,1977.4,1976.7,7.37838784]
[1771273428285,0.48571266,1977.4,1976.7,7.86775422]
[1771273429825,0.47864897,1977.3,1976.8,1.26467017]
[1771273432041,1.7430055,1977.3,1976.7,9.13245897]
[1771273435440,0.47864897,1977.2,1976.7,1.26470475]
[1771273435742,0.47864897,1977.2,1976.4,1.26488685]
[1771273435955,0.47864897,1977.2,1976.3,1.75435651]
[1771273437456,14.42278934,1977.5,1976.7,7.37838784]
[1771273437457,1.26427329,1977.5,1976.7,7.37838784]
[1771273437659,5.53543503,1977.6,1976.9,7.86775422]
[1771273438352,0.0011,1977.2,1976.9,7.86775422]
[1771273440845,0.0011,1977.2,1976.8,1.26564703]
[1771273441155,0.0011,1977.2,1976.8,1.75501341]
[1771273442639,0.0011,1977.2,1976.8,0.001]
[1771273442839,0.0011,1977.2,1976.8,1.75501642]
[1771273443157,0.0011,1977.5,1977.0,0.48936638]
[1771273444582,0.0011,1977.5,1977.1,7.86775422]
[1771273444869,0.0011,1977.5,1977.3,1.26435037]
[1771273445272,0.0011,1977.5,1977.3,1.75371675]
[1771273445771,0.0011,1977.5,1977.3,1.26435037]
[1771273446365,0.0011,1977.5,1977.3,1.75371675]
[1771273447340,0.0011,1977.5,1977.2,5.05741832]
[1771273447572,0.0011,1977.5,1977.1,0.48936638]
[1771273448373,0.0011,1977.5,1977.0,2.40051861]
[1771273448567,0.0011,1977.5,1977.0,2.88988499]
[1771273449140,0.0011,1977.5,1977.1,0.48936638]
[1771273449466,0.0011,1977.5,1977.2,1.26441432]
[1771273450043,0.0011,1977.5,1977.2,1.7537807]
[1771273450549,0.0011,1977.5,1977.2,0.48936638]
[1771273450774,0.0011,1977.5,1977.0,2.88985838]
[1771273450947,0.0011,1977.4,1977.0,2.400492]
[1771273451146,0.0011,1977.4,1977.0,2.88985838]
[1771273454577,0.49668617,1977.4,1976.9,0.001]
[1771273455975,0.49558617,1977.2,1976.9,0.001]
[1771273456470,0.49558617,1977.2,1976.7,0.001]
[1771273458077,1.76006444,1977.1,1976.7,0.001]
[1771273463074,1.76006444,1977.1,1976.8,0.001]
[1771273464651,0.0011,1977.4,1977.0,0.47344557]
[1771273464848,0.0011,1977.7,1976.9,0.47344557]
[1771273465081,1.0712,1977.7,1976.9,0.47344557]
[1771273466153,1.0712,1977.7,1977.0,1.26454223]
[1771273466371,1.0712,1977.7,1977.1,0.47344557]
[1771273468368,1.0712,1977.7,1977.3,0.47344557]
[1771273470352,1.0712,1977.7,1977.4,1.737732]
[1771273471480,0.0011,1977.7,1977.5,0.47344557]
[1771273472383,0.0011,1977.7,1977.3,0.47344557]
[1771273472585,0.4111,1978.0,1977.4,0.47344557]
[1771273472586,0.0011,1978.0,1977.4,0.47344557]
[1771273472790,1.0712,1978.0,1977.4,0.47344557]
[1771273473189,0.911,1978.3,1977.4,0.47344557]
[1771273474383,0.911,1978.3,1977.6,0.47344557]
[1771273474859,2.17471945,1978.3,1977.6,0.47344557]
[1771273475181,0.0011,1977.7,1977.6,0.47344557]
[1771273475384,0.0011,1977.9,1977.6,0.47344557]
[1771273475983,0.911,1978.3,1977.6,0.47344557]
[1771273477252,2.17472465,1978.3,1977.6,0.47344557]
[1771273477562,2.67031082,1978.3,1977.6,1.73755416]
[1771273477767,2.17472465,1978.3,1977.7,0.47344557]
[1771273477982,2.67031082,1978.3,1977.7,0.47344557]
[1771273478368,2.67031082,1978.3,1977.6,1.26410859]
[1771273478779,2.67031082,1978.3,1977.6,1.73755416]
[1771273479457,2.67031082,1978.3,1977.7,0.47344557]
[1771273480459,0.49558617,1978.2,1977.5,0.47344557]
[1771273480661,0.49558617,1978.2,1977.4,1.26428643]
[1771273481058,0.49558617,1978.2,1977.3,6.66872173]
[1771273481059,0.49558617,1978.2,1977.3,2.8757459]
[1771273481473,0.49558617,1978.0,1977.3,2.8757459]
[1771273484693,1.72255963,1977.9,1977.3,2.8757459]
[1771273486390,0.4585928,1977.9,1977.3,2.8757459]
[1771273486591,1.26395285,1978.0,1977.4,0.47170993]
[1771273486988,0.4585928,1978.0,1977.4,1.73598897]
[1771273487160,0.4585928,1978.0,1977.4,1.26427904]
[1771273487362,0.4585928,1978.0,1977.1,0.47170993]
[1771273487994,0.4585928,1978.0,1977.4,0.001]
[1771273488969,0.46539243,1977.8,1977.4,0.001]
[1771273489167,0.46539243,1977.8,1977.1,0.001]
[1771273491692,1.72948708,1977.7,1977.1,0.46759542]
[1771273491992,1.72948708,1977.7,1977.1,0.001]
[1771273492296,0.46539243,1977.6,1977.1,0.001]
[1771273494188,1.2642225,1977.5,1977.1,0.001]
[1771273495697,1.2642225,1977.5,1977.0,0.46659542]
[1771273500792,1.2642225,1977.5,1977.1,0.001]
[1771273504106,1.53339243,1977.6,1977.1,0.001]
[1771273504297,1.068,1977.6,1977.2,0.46659542]
[1771273504808,2.33216446,1977.6,1977.1,0.46759542]
[1771273506306,2.33216446,1977.6,1977.2,0.46659542]
[1771273512298,1.068,1977.6,1977.2,1.7309869]
[1771273512688,1.068,1977.6,1977.3,0.46659542]
[1771273514092,1.068,1977.6,1977.2,0.46697786]
[1771273514603,0.0011,1977.5,1977.2,0.46797786]
[1771273515309,0.0011,1977.5,1977.2,0.001]
[1771273517105,0.0011,1977.5,1977.2,0.46797786]
[1771273518095,0.0011,1977.5,1977.4,0.46697786]
[1771273519291,0.0011,1977.7,1977.4,0.46697786]
[1771273520294,0.0011,1977.7,1977.4,1.73123048]
[1771273520500,0.0011,1977.7,1977.5,0.46697786]
[1771273522000,0.0011,1978.0,1977.5,0.46697786]
[1771273522207,0.0011,1978.0,1977.6,0.46697786]
[1771273522514,0.0011,1978.0,1977.8,0.46697786]
[1771273522693,0.0011,1978.2,1977.9,0.46697786]
[1771273524621,0.0011,1978.2,1977.9,1.73092431]
[1771273524923,0.0011,1978.2,1978.0,0.46697786]
[1771273525215,0.0011,1978.3,1978.0,0.46697786]
[1771273525698,0.0011,1978.4,1978.2,0.46697786]
[1771273525895,5.05259304,1979.2,1978.4,0.46697786]
[1771273525896,0.46746883,1979.2,1978.4,0.46697786]
[1771273526415,0.46746883,1978.4,1977.7,0.46697786]
[1771273526584,0.46746883,1978.4,1977.7,1.60297786]
[1771273526585,1.26371126,1978.3,1977.7,1.60297786]
[1771273526784,1.26371126,1978.3,1977.8,0.46697786]
[1771273528619,0.0011,1978.1,1977.8,0.46697786]
[1771273531815,0.0011,1978.1,1977.6,0.46797786]
[1771273533117,0.0011,1978.1,1977.7,0.46697786]
[1771273536825,0.46856883,1978.1,1977.6,0.001]
[1771273537120,1.26390293,1978.0,1977.6,0.001]
[1771273538324,1.26494606,1978.1,1977.6,0.46797786]
[1771273540221,0.0011,1978.1,1977.7,0.46697786]
[1771273540903,0.46856883,1978.1,1977.6,0.001]
[1771273541103,0.46856883,1978.1,1977.7,0.001]
[1771273541303,1.26390293,1978.0,1977.7,0.001]
[1771273543633,0.0011,1978.1,1977.7,0.46797786]
[1771273544003,5.05606922,1978.3,1978.1,0.45936267]
[1771273544004,0.0011,1978.3,1978.1,0.45936267]
[1771273544430,1.26481526,1978.3,1977.8,0.45936267]
[1771273544724,0.0011,1978.3,1977.8,0.45936267]
[1771273544929,1.2648261,1978.3,1977.8,0.45936267]
[1771273545934,0.0011,1978.3,1977.8,0.45936267]
[1771273548727,0.0011,1978.3,1978.0,0.49084429]
[1771273551233,0.0011,1978.3,1978.0,1.75474335]
[1771273552841,0.0011,1978.4,1978.1,0.49084429]
[1771273553040,0.0011,1978.4,1977.7,1.63084429]
[1771273553041,0.49768485,1978.4,1977.7,1.63084429]
[1771273554130,0.49768485,1978.4,1977.7,2.89492544]
[1771273554915,1.26371126,1978.3,1978.1,0.001]
[1771273555114,0.0011,1978.2,1978.1,0.001]
[1771273557448,0.0011,1978.2,1977.7,0.001]
[1771273557449,0.49658485,1978.1,1977.7,0.001]
[1771273560356,1.26390293,1978.0,1977.5,0.001]
[1771273560651,7.37190442,1978.2,1977.6,0.49084429]
[1771273560652,2.33887812,1978.2,1977.6,0.49084429]
[1771273560851,0.0011,1978.2,1977.8,0.49084429]
[1771273561644,0.0011,1978.2,1978.0,0.49084429]
[1771273563651,0.0011,1978.2,1978.0,1.75474612]
[1771273564052,0.0011,1978.2,1978.0,0.49084429]
[1771273564643,0.0011,1978.2,1978.0,1.75474696]
[1771273564845,1.076,1978.6,1978.1,0.49084429]
[1771273565256,1.26350182,1978.7,1978.1,0.49084429]
[1771273565453,1.077,1978.8,1978.1,0.49084429]
[1771273565752,1.077,1978.8,1978.2,0.49084429]
[1771273567153,1.077,1978.8,1978.4,0.49084429]
[1771273569532,1.077,1978.8,1978.4,1.75446666]
[1771273569735,0.0011,1978.7,1978.4,1.75446666]
[1771273570368,0.0011,1978.7,1978.4,0.49084429]
[1771273570529,0.0011,1978.7,1978.2,1.7545664]
[1771273571226,0.0011,1978.7,1978.3,0.49084429]
[1771273571631,0.0011,1978.7,1978.3,1.75449965]
[1771273571852,0.0011,1978.7,1978.4,0.49084429]
[1771273572459,0.0011,1979.0,1978.6,0.49084429]
[1771273572662,1.26297156,1979.5,1978.9,0.49084429]
[1771273572942,1.26297156,1979.5,1978.2,0.49084429]
[1771273572943,0.49658485,1979.0,1978.2,0.49084429]
[1771273573138,0.49658485,1979.0,1978.1,0.001]
[1771273573139,0.49658485,1978.8,1978.1,0.001]
[1771273573355,1.075,1979.0,1978.1,0.001]
[1771273573356,7.86738927,1978.7,1978.1,0.001]
[1771273573738,1.26351966,1978.6,1978.1,0.001]
[1771273573937,1.51849911,1979.9,1978.6,0.47101416]
[1771273574139,1.51849911,1979.9,1979.1,0.47101416]
[1771273574344,1.51849911,1979.9,1979.3,0.47101416]
[1771273574558,1.3196738,1980.0,1979.3,0.47101416]
[1771273575947,1.3196738,1980.0,1979.3,1.73407585]
[1771273576152,0.0570427,1980.0,1979.4,0.47101416]
[1771273578259,0.49387623,1980.4,1979.4,0.47101416]
[1771273578260,0.49387623,1981.2,1979.8,0.47101416]
[1771273578758,1.40387623,1981.1,1979.8,0.47101416]
[1771273579340,0.49387623,1981.0,1979.8,0.47101416]
[1771273579550,1.086,1980.9,1979.8,0.47101416]
[1771273580865,1.086,1980.9,1979.9,1.73370419]
[1771273580866,1.26211631,1980.8,1979.9,1.73370419]
[1771273581161,1.26211631,1980.8,1980.0,0.47101416]
[1771273582536,0.0011,1980.7,1979.8,0.47101416]
[1771273583366,0.0011,1980.7,1979.7,1.149]
[1771273583367,0.49497623,1980.7,1979.7,1.149]
[1771273583740,0.49497623,1980.7,1979.7,1.62001416]
[1771273584136,0.49497623,1980.7,1979.7,0.47101416]
[1771273584540,0.49497623,1980.7,1979.7,1.7338287]
[1771273585064,1.26224376,1980.6,1979.7,1.7338287]
[1771273586047,1.75611999,1980.6,1979.7,1.7338287]
[1771273586863,0.49387623,1980.5,1979.5,1.38101416]
[1771273587068,1.75624746,1980.4,1979.5,2.64395814]
[1771273588146,0.0011,1980.7,1979.9,0.47101416]
[1771273588547,0.0011,1980.7,1980.0,0.47101416]
[1771273588946,1.26328334,1980.7,1980.0,0.47101416]
[1771273589245,0.0011,1980.7,1980.2,0.47101416]
[1771273591662,0.0011,1980.7,1980.3,1.26243498]
[1771273591846,0.0011,1980.7,1980.3,1.73344914]
[1771273593160,0.0011,1980.7,1980.3,0.47101416]
[1771273595173,0.0011,1980.7,1980.1,1.73353043]
[1771273595369,0.0011,1980.7,1980.2,0.47101416]
[1771273596061,0.0011,1980.7,1980.4,0.47101416]
[1771273598983,0.0011,1980.7,1980.4,1.73333969]
[1771273599682,0.0011,1980.7,1980.5,0.47101416]
[1771273601463,0.0011,1980.7,1980.5,1.73331734]
[1771273603163,0.0011,1980.7,1980.3,0.47101416]
[1771273603366,0.0011,1980.7,1980.1,1.73452704]
[1771273603567,0.0011,1980.7,1980.3,1.73344914]
[1771273603888,0.0011,1980.7,1980.3,0.47101416]
[1771273606969,0.0011,1980.7,1980.1,1.74620067]
[1771273607677,0.0011,1980.7,1980.1,0.48363845]
[1771273608076,0.0011,1980.7,1980.1,1.74619993]
[1771273609793,1.26328003,1980.7,1980.1,0.48363845]
[1771273610178,1.26328003,1980.7,1980.1,0.001]
[1771273610179,1.71959168,1980.7,1980.1,0.001]
[1771273611198,0.45631165,1980.6,1980.1,0.001]
[1771273611861,0.45631165,1980.6,1980.2,1.72397663]
[1771273611862,0.0011,1980.6,1980.2,1.72397663]
[1771273612065,0.0011,1980.6,1980.3,0.46151752]
[1771273612261,0.0011,1980.6,1980.2,1.26245911]
[1771273612989,0.0011,1980.6,1980.1,1.7250394]
[1771273613167,0.0011,1980.6,1980.2,0.46151752]
[1771273614009,0.0011,1980.6,1980.2,1.72399396]
[1771273615097,0.0011,1980.6,1980.2,0.46151752]
[1771273615473,0.0011,1980.7,1980.3,0.46151752]
[1771273615985,0.0011,1980.7,1980.5,0.46151752]
[1771273616171,1.2617978,1981.3,1980.5,0.46151752]
[1771273618299,6.56725128,1981.4,1980.6,1.26224376]
[1771273618300,1.71806114,1981.4,1980.6,1.26224376]
[1771273618594,1.71802922,1981.5,1980.7,0.46151752]
[1771273621198,0.45631165,1981.4,1980.7,0.46151752]
[1771273621404,0.45631165,1981.4,1980.5,1.72378589]
[1771273621608,0.45631165,1981.4,1980.6,0.46151752]
[1771273621982,0.45631165,1981.4,1980.5,1.26226837]
[1771273622181,0.45631165,1981.4,1980.5,1.72378589]
[1771273622678,0.45631165,1981.4,1980.6,0.46151752]
[1771273623004,1.26171757,1981.5,1980.6,0.46151752]
[1771273623374,1.71802922,1981.5,1980.8,0.46151752]
[1771273623583,0.45631165,1981.4,1980.8,0.46151752]
[1771273624071,0.45631165,1981.4,1980.6,1.72372716]
[1771273624403,0.45631165,1981.4,1980.6,0.46151752]
[1771273625599,1.71810945,1981.3,1980.6,0.46151752]
[1771273626179,1.71920945,1981.3,1980.6,0.46151752]
[1771273627782,1.71920945,1981.3,1980.6,1.72376015]
[1771273628002,1.71920945,1981.3,1980.6,0.46151752]
[1771273629001,0.45631165,1981.2,1980.6,0.46151752]
[1771273629195,0.45631165,1981.2,1980.4,0.46151752]
[1771273629593,1.71830054,1981.0,1980.2,1.72400879]
[1771273629806,1.26198889,1981.0,1980.3,0.46151752]
[1771273632007,1.26198889,1981.0,1980.4,0.46151752]
[1771273632507,1.26198889,1981.0,1980.2,1.26245968]
[1771273632508,0.45631165,1980.9,1980.2,0.46151752]
[1771273633485,0.45631165,1980.9,1980.1,2.17353404]
[1771273633684,0.45631165,1980.9,1980.1,2.63505156]
[1771273634486,1.26211631,1980.8,1980.1,2.63505156]
[1771273634701,5.50477691,1980.9,1980.1,2.63505156]
[1771273634702,1.71841674,1980.9,1980.2,0.45799285]
[1771273634985,1.26210509,1980.9,1980.2,0.45799285]
[1771273636412,2.31310509,1980.9,1980.2,0.45799285]
[1771273639586,2.31310509,1980.9,1980.3,0.45899285]
[1771273640621,0.4999572,1980.8,1980.3,0.001]
[1771273641923,1.26218003,1980.7,1980.3,0.001]
[1771273643728,0.0011,1981.3,1980.7,0.45799285]
[1771273643899,0.0011,1981.3,1981.2,1.26186149]
[1771273644097,0.0011,1981.3,1981.2,0.45799285]
[1771273646327,0.0011,1981.3,1981.2,1.71985434]
[1771273648546,0.0011,1981.3,1980.8,1.26211631]
[1771273648724,0.0011,1981.3,1980.9,0.45799285]
[1771273652022,0.0011,1981.3,1980.9,1.71998647]
[1771273652618,0.0011,1981.3,1980.9,0.45799285]
[1771273652933,0.0011,1981.3,1980.9,1.72003461]
[1771273654004,0.0011,1981.2,1980.9,1.72003461]
[1771273654211,0.0011,1981.3,1980.8,0.49145412]
[1771273656237,0.0011,1981.3,1981.0,0.49145412]
[1771273657913,0.0011,1981.3,1980.9,1.2620526]
[1771273658223,0.0011,1981.3,1980.9,1.75350672]
[1771273658718,0.909,1982.0,1980.9,1.75350672]
[1771273658719,2.64613077,1982.0,1981.1,0.49145412]
[1771273658932,6.43,1982.4,1981.1,0.49145412]
[1771273659132,0.47575309,1983.7,1981.6,0.49145412]
[1771273659336,1.51616612,1983.3,1982.3,0.49145412]
[1771273659543,1.51616612,1983.3,1982.2,10.856259]
[1771273659544,1.51616612,1983.3,1982.5,0.49145412]
[1771273659914,0.47575309,1983.7,1982.5,0.49145412]
[1771273660139,0.47575309,1983.7,1982.7,0.49145412]
[1771273660140,0.14750104,1983.7,1982.7,0.49145412]
[1771273660340,2.16921709,1983.8,1982.9,1.26077966]
[1771273660542,1.26021709,1983.8,1983.1,0.49145412]
[1771273660747,0.1323845,1984.0,1983.3,0.49145412]
[1771273660971,3.032,1985.0,1983.3,0.49145412]
[1771273660972,2.5245713,1984.9,1983.5,0.49145412]
[1771273661115,2.5245713,1984.9,1983.7,0.49145412]
[1771273661315,2.5245713,1984.9,1983.4,1.125]
[1771273661316,1.26505652,1984.9,1984.1,0.49145412]
[1771273661552,2.52456978,1984.9,1984.2,0.46820083]
[1771273661761,2.52456978,1984.9,1984.3,0.46820083]
[1771273661969,2.52456978,1984.9,1984.1,1.126]
[1771273661970,0.37364678,1984.8,1983.6,0.49145412]
[1771273662251,0.37364678,1984.8,1983.3,0.49145412]
[1771273662411,0.37364678,1984.5,1983.4,0.46450565]
[1771273662611,0.37364678,1984.5,1983.1,0.49145412]
[1771273662612,1.28264678,1984.4,1983.1,1.75210371]